Cogmind - Beta 11.1 @@@ ROGUE MODE // 2022.05.13 @ 19:02:16 Player: LU-1G1 Result: Destroyed by G-34 Mercenary with Small Laser Performance ------------- Evolutions (0) 0 Regions Visited (4) 800 Robots Destroyed (19) 95 Value Destroyed (387) 387 Prototype IDs (23) 460 Alien Tech Used (0) 0 Bonus (300) 300 TOTAL SCORE: 2042 Bonus ------- Aligned with FarCom 300 Cogmind --------- Core Integrity 0/250 Matter 184/300 Energy 53/100 System Corruption 8% Temperature Cool (6) Movement Walking (105) Location -9/Mines Parts ------- > --- POWER (1) -------- (None) > --- PROPULSION (2) --- Aluminum Leg Potential Leg > --- UTILITY (2) ------ Large Storage Unit > --- WEAPON (2) ------- Light Assault Rifle Light Assault Rifle > --- INVENTORY (15) --- Light Ion Engine Aluminum Leg Potential Leg Compact Wheel Compact Wheel Small Laser Grenade Launcher Peak State ------------ > --- POWER ------------ (None) > --- PROPULSION ------- Aluminum Leg Potential Leg > --- UTILITY ---------- Large Storage Unit > --- WEAPON ----------- Light Assault Rifle Light Assault Rifle > --- INVENTORY -------- Light Ion Engine Aluminum Leg Potential Leg Compact Wheel Compact Wheel Small Laser Grenade Launcher [Rating: 15] Favorites ----------- Power Light Ion Engine Engine Light Ion Engine Propulsion Light Treads Treads Light Treads Leg Aluminum Leg Utility Light Armor Plating Storage Small Storage Unit Protection Light Armor Plating Weapon Light Assault Rifle Energy Gun Medium Laser Ballistic Gun Light Assault Rifle Launcher Grenade Launcher Build | -11 -10 -10 -10 -9 ------- Run | Scr Mat Min Exi Min Slots Evolved . | . . . . . Power . | . . . . . Propulsion . | . . . . . Utility . | . . . . . Weapon . | . . . . . Parts Attached 22 | 6 5 4 1 6 Power 2 | 1 . 1 . . Engine 2 | 1 . 1 . . Core . | . . . . . Reactor . | . . . . . Propulsion 5 | 2 1 . . 2 Treads 3 | 2 1 . . . Leg 2 | . . . . 2 Wheel . | . . . . . Hover . | . . . . . Flight . | . . . . . Utility 4 | 1 1 1 1 . Device . | . . . . . Storage 3 | 1 . 1 1 . Processor . | . . . . . Hackware . | . . . . . Protection 1 | . 1 . . . Artifact . | . . . . . Weapon 11 | 2 3 2 . 4 Energy Gun 1 | 1 . . . . Energy Cannon . | . . . . . Ballistic Gun 9 | 1 2 2 . 4 Ballistic Cannon . | . . . . . Launcher 1 | . 1 . . . Special Weapon . | . . . . . Impact Weapon . | . . . . . Slashing Weapon . | . . . . . Piercing Weapon . | . . . . . Special Melee Weapon . | . . . . . Unidentified Prototypes . | . . . . . Parts Lost 7 | . . 1 . 6 Power 2 | . . 1 . 1 Propulsion 2 | . . . . 2 Utility 1 | . . . . 1 Weapon 2 | . . . . 2 Highest Loss Streak 6 | . . 1 . 6 To Critical Strikes 1 | . . . . 1 Average Slot Usage (%) 84 | . 92 99 71 56 Engine 13 | . 14 13 14 3 Treads 27 | . 27 28 28 10 Storage 14 | . 14 14 14 14 Protection 11 | . 7 14 14 3 Energy Gun 6 | . 14 6 . . Ballistic Gun 10 | . 13 21 . 24 Naked Turns . | . . . . . Heaviest Build 29 | 13 18 29 26 . Greatest Support 40 | 40 40 40 40 . Greatest Overweight (x) . | . . . . . Average Overweight (x) . | . . . . . Largest Inventory Capacity 15 | 8 8 15 15 15 Average Capacity 11 | 7 8 11 15 15 Most Carried 13 | 7 8 9 13 12 Average Carried 9 | 3 7 8 11 10 Final Capacity 15 | 8 8 15 15 15 Final Carried 13 | 6 8 9 13 7 Class Distribution -------------------- 100% | Mutant Dominant Class ---------------- Mutant | -10/Materials Mutant | -10/Mines Mutant | -10/Exiles Mutant | -9/Mines Resources | -11 -10 -10 -10 -9 ----------- Run | Scr Mat Min Exi Min Matter Collected 434 | 250 116 68 . . Remotely . | . . . . . Salvage Created 470 | . 303 74 . 93 Parts 32 | . 21 7 . 4 Haulers Intercepted 1 | . 1 . . . Recyclers Shooed 2 | . 1 1 . . Parts Field Recycled . | . . . . . Retrieved Matter . | . . . . . Parts Self-Destructed . | . . . . . Prevented . | . . . . . Kills | -11 -10 -10 -10 -9 ------- Run | Scr Mat Min Exi Min Combat Hostiles Destroyed 16 | . 9 5 . 2 Guns 13 | . 6 5 . 2 AOE 3 | . 3 . . . Classes Destroyed 6 | . 5 . . 1 Hauler 1 | . 1 . . . Operator 1 | . 1 . . . Watcher 1 | . 1 . . . Swarmer 9 | . 4 5 . . Grunt 6 | . 5 . . 1 Brawler 1 | . . . . 1 Best Kill Streak 5 | . 5 3 . 2 Combat Bots Only 5 | . 5 3 . 2 Max Kills in Single Turn 1 | . 1 1 . 1 Gunslinging . | . . . . . Exploded 1 | . 1 . . . Melee . | . . . . . Uniques/NPCs Destroyed . | . . . . . Combat | -11 -10 -10 -10 -9 -------- Run | Scr Mat Min Exi Min Damage Taken 895 | . 345 150 . 400 Core 257 | . 107 26 . 124 Absorbed by Shields . | . . . . . Core Remaining (%) 100 | 100 . . . . Volleys Fired 56 | . 31 12 . 13 Largest 2 | . 2 2 . 2 Hottest 70 | . 70 70 . 40 Shots Fired 104 | . 57 24 . 23 Gun 99 | . 52 24 . 23 Cannon . | . . . . . Launcher 5 | . 5 . . . Special . | . . . . . Kinetic 67 | . 26 18 . 23 Thermal 32 | . 26 6 . . Explosive 5 | . 5 . . . Electromagnetic . | . . . . . Robot Hit Streak 12 | . 9 5 . 12 Robot Miss Streak 3 | . 3 2 . 1 Penetration Max . | . . . . . Secondary Targets 1 | . . . . 1 Max Gunslinging Chain 1 | . . . . 1 Shots Hit Robots 68 | . 34 16 . 18 Core Hits 35 | . 24 6 . 5 Critical Kills . | . . . . . Critical Parts Destroyed . | . . . . . Critical Strikes 2 | . 2 . . . Burn 2 | . 2 . . . Melee Attacks . | . . . . . Impact . | . . . . . Slashing . | . . . . . Piercing . | . . . . . Sneak Attacks . | . . . . . Combat Hostiles . | . . . . . Follow-up Attacks . | . . . . . Damage Inflicted 985 | . 617 180 . 188 Guns 713 | . 345 180 . 188 Cannons . | . . . . . Explosions 233 | . 233 . . . Melee . | . . . . . Ramming 39 | . 39 . . . Kinetic 471 | . 156 127 . 188 Thermal 242 | . 189 53 . . Explosive 233 | . 233 . . . Electromagnetic . | . . . . . Impact . | . . . . . Slashing . | . . . . . Piercing . | . . . . . Highest Corruption 8 | . 1 1 1 8 Average Corruption 1 | . 1 1 1 6 Corruption Purged . | . . . . . Corruption Blocked . | . . . . . Effects 13 | . . 5 7 1 Message Errors 2 | . . 1 1 . Matter Fused 4 | . . 2 1 1 Heat Flow Errors 1 | . . 1 . . Energy Discharges 2 | . . . 2 . Data Loss (minor) 2 | . . 1 1 . Data Loss (major) 1 | . . . 1 . Alerts 1 | . . . 1 . Overload Shots . | . . . . . Overflow Damage 13 | . 13 . . . Projectiles . | . . . . . Explosions 13 | . 13 . . . Melee . | . . . . . Knockbacks . | . . . . . Impact . | . . . . . Kinetic . | . . . . . Secondary . | . . . . . Self-Inflicted Damage . | . . . . . Shots . | . . . . . Rammed 19 | . 19 . . . Targets Rammed 21 | . 21 . . . Kicked . | . . . . . Crushed 2 | . 2 . . . Highest Temperature 332 | . 332 264 . 12 Average Temperature 80 | . 97 71 . 6 Received Heat Transfer 267 | . 105 . . 162 Siege Activations . | . . . . . Robots Corrupted . | . . . . . Combat Hostiles . | . . . . . Parts Fried . | . . . . . Impact Corruptions . | . . . . . Robots Melted . | . . . . . Combat Hostiles . | . . . . . Parts Melted 2 | . 2 . . . Heat Transferred 851 | . 703 148 . . Parts Sabotaged . | . . . . . Parts Stolen . | . . . . . Parts Stripped . | . . . . . Power Chain Reactions . | . . . . . Missiles Intercepted . | . . . . . Alert | -11 -10 -10 -10 -9 ------- Run | Scr Mat Min Exi Min Peak Influence 207 | . 207 195 . 30 Initial 80 | . . 80 . . Average 107 | . 101 154 . 11 Maximum Alert Level 1 | . 1 . . . Low Security (%) 88 | 100 79 100 . 100 Level 1 11 | . 20 . . . Level 2 . | . . . . . Level 3 . | . . . . . Level 4 . | . . . . . Level 5 . | . . . . . High Security . | . . . . . Max Security . | . . . . . Squads Dispatched 3 | . 3 . . . Investigation . | . . . . . Extermination . | . . . . . Reinforcement 3 | . 3 . . . Assault . | . . . . . Garrison . | . . . . . Intercept . | . . . . . Searches Triggered . | . . . . . Construction Impeded . | . . . . . Haulers Reinforced . | . . . . . Active Scanning Responses . | . . . . . Cargo Convoy Interrupts . | . . . . . Stealth | -11 -10 -10 -10 -9 --------- Run | Scr Mat Min Exi Min Distress Signals 2 | . 2 . . . Communications Jammed . | . . . . . Distress Signals . | . . . . . Times Spotted 25 | . 16 6 . 3 Peak Tracking Total 3 | . 3 3 . 3 Tactical Retreats 2 | . 2 . . . Traps | -11 -10 -10 -10 -9 ------- Run | Scr Mat Min Exi Min Traps Triggered 2 | . 2 . . . Indirectly . | . . . . . Trap Hack Attempts . | . . . . . Triggered . | . . . . . Disarmed . | . . . . . Reprogrammed . | . . . . . Reused . | . . . . . Traps Extracted . | . . . . . Installed . | . . . . . Triggered . | . . . . . Machines | -11 -10 -10 -10 -9 ---------- Run | Scr Mat Min Exi Min Machines Disabled 1 | . 1 . . . Max in Single Turn 1 | . 1 . . . Machines Sabotaged . | . . . . . Garrisons Compromised . | . . . . . Overloaded Fab Kills . | . . . . . Hacking | -11 -10 -10 -10 -9 --------- Run | Scr Mat Min Exi Min Machines Accessed 3 | . 1 . 2 . Terminals 1 | . 1 . . . Fabricators . | . . . . . Repair Stations . | . . . . . Recycling Units . | . . . . . Scanalyzers . | . . . . . Garrison Access . | . . . . . Total Hacks 6 | . 4 . 2 . Successful 3 | . 1 . 2 . Failed 3 | . 3 . . . Catastrophic . | . . . . . Database Lockouts . | . . . . . Manual 5 | . 4 . 1 . Terminals 4 | . 4 . . . Fabricators . | . . . . . Repair Stations . | . . . . . Recycling Units . | . . . . . Scanalyzers . | . . . . . Garrison Access . | . . . . . Terminal Hacks 3 | . 1 . 2 . Record 1 | . . . 1 . Robot Analysis 1 | . 1 . . . EX-Prototype ID Bank 1 | . . . 1 . Fabricator Hacks . | . . . . . Repair Station Hacks . | . . . . . Recycling Unit Hacks . | . . . . . Scanalyzer . | . . . . . Garrison Access Hacks . | . . . . . Unauthorized Hacks . | . . . . . Terminals . | . . . . . Fabricators . | . . . . . Repair Stations . | . . . . . Recycling Units . | . . . . . Scanalyzers . | . . . . . Garrison Access . | . . . . . Data Cores Recovered . | . . . . . Used . | . . . . . Hacking Detections 1 | . 1 . . . Full Trace Events . | . . . . . Feedback Events . | . . . . . Feedback Blocked . | . . . . . Robot Schematics Acquired . | . . . . . Robots Built . | . . . . . Authchips . | . . . . . Time . | . . . . . Total Robot Build Rating . | . . . . . Part Schematics Acquired . | . . . . . Parts Built . | . . . . . Authchips . | . . . . . Time . | . . . . . Total Part Build Rating . | . . . . . Parts Repaired . | . . . . . Time . | . . . . . Parts Recycled . | . . . . . Recycled Matter . | . . . . . Retrieved Matter . | . . . . . Retrieved Components . | . . . . . Parts Scanalyzed . | . . . . . Part Schematics Acquired . | . . . . . Parts Damaged . | . . . . . Bothacking | -11 -10 -10 -10 -9 ------------ Run | Scr Mat Min Exi Min Used RIF Installer . | . . . . . Robots Hacked . | . . . . . Non-combat . | . . . . . Combat . | . . . . . Robot Hacks Applied . | . . . . . Relay Couplers Released . | . . . . . Fabnet Peak Effective % . | . . . . . Robots Rewired . | . . . . . Allies Hacked . | . . . . . Hacks Repelled . | . . . . . Allies | -11 -10 -10 -10 -9 -------- Run | Scr Mat Min Exi Min Total Allies . | . . . . . Largest Group . | . . . . . Highest-Rated Group . | . . . . . Highest-Rated Ally . | . . . . . Total Orders . | . . . . . Ally Attacks . | . . . . . Total Damage . | . . . . . Kills . | . . . . . Allies Corrupted . | . . . . . Allies Melted . | . . . . . Intel | -11 -10 -10 -10 -9 ------- Run | Scr Mat Min Exi Min Robot Analysis Total 1 | . 1 . . . Derelict Logs Recovered 1 | . . 1 . . Drone Launches . | . . . . . Drone Recoveries . | . . . . . Exploration | -11 -10 -10 -10 -9 ------------- Run | Scr Mat Min Exi Min Turns Passed 1654 | 85 564 344 623 38 Spaces Moved 866 | 46 247 186 387 . Core 3 | 3 . . . . Treads 863 | 43 247 186 387 . Legs . | . . . . . Wheels . | . . . . . Hover . | . . . . . Flight . | . . . . . Fastest Speed 50 | 50 160 160 160 . Average Speed 159 | 152 160 160 160 . Slowest Speed 160 | 160 160 160 160 . Overloaded Moves . | . . . . . Propulsion Burnouts . | . . . . . Robots Hopped . | . . . . . Cave-ins Triggered . | . . . . . Exploration Rate (%) 35 | 3 57 44 70 3 Regions Visited 4 Branch Regions 3 Pre-discovered Areas 1 | . . . 1 . Known Exits Taken . | . . . . . Unknown Exits Taken 4 | 1 1 1 1 . Scrap Searched . | . . . . . Spaces Dug . | . . . . . Terrain Destroyed 24 | . 24 . . . Melee . | . . . . . Projectile . | . . . . . AOE 24 | . 24 . . . Terrain Rammed . | . . . . . Walls Destroyed . | . . . . . Machines Disabled . | . . . . . Actions | -11 -10 -10 -10 -9 --------- Run | Scr Mat Min Exi Min Total 1032 | 59 349 213 392 19 Wait 48 | . 44 4 . . Move 862 | 45 246 185 386 . Hop . | . . . . . Pick Up 14 | 8 2 2 2 . Fast Attach 9 | 4 3 2 . . Attach 8 | 2 . . . 6 Detach 2 | . . . 2 . Swap 5 | . 2 2 1 . Drop 5 | . . 4 1 . Fire 56 | . 31 12 . 13 Melee . | . . . . . Ram . | . . . . . Kick . | . . . . . Crush 21 | . 21 . . . Escape Stasis . | . . . . . Rewire 2 | . . 2 . . Trap . | . . . . . Miscellaneous . | . . . . . Route ------- -11/Scrapyard -10/Materials (discovered 4 exits: [*Mat x2] / [*Min x2]) -10/Mines -10/Exiles -9/Mines History --------- Turn | Location | Event 22 | -11/Scrapyard | Discovered new exit (range 16) 86 | -11/Scrapyard | Entered Materials 305 | -10/Materials | Build established: Mutant 319 | -10/Materials | Discovered new exit (range 6) 389 | -10/Materials | Discovered new exit (range 16) 608 | -10/Materials | Discovered new exit (range 15) 626 | -10/Materials | Discovered new exit (range 10) 650 | -10/Materials | Entered Mines 702 | -10/Mines | Core integrity fell below 50% 976 | -10/Mines | Deemed a non-threat by the Exiles lab entrance 978 | -10/Mines | Discovered new exit (range 5) 994 | -10/Mines | Entered Exiles 1035 | -10/Exiles | Met 8R-AWN 1063 | -10/Exiles | Met EX-HEX 1141 | -10/Exiles | Met EX-DEC 1168 | -10/Exiles | Learned location of Zion (-6) 1380 | -10/Exiles | Met EX-BIN 1402 | -10/Exiles | Aligned with FarCom system 1404 | -10/Exiles | Given EX-Vault access code 1444 | -10/Exiles | Opened EX-Vault 1458 | -10/Exiles | Found Potential Leg 1461 | -10/Exiles | Found Potential Leg 1502 | -10/Exiles | Warned to stay clear of 0b10 Research branches 1511 | -10/Exiles | Exiles lab attacked by MAIN.C 1604 | -10/Exiles | Discovered new exit (range 10) 1617 | -10/Exiles | Left Exiles lab with Potential Leg 1617 | -10/Exiles | Entered Mines 1640 | -9/Mines | Core integrity fell below 20% 1655 | -9/Mines | Destroyed by G-34 Mercenary with Small Laser Last Messages --------------- 01618_ C-30 ARC bursts open, deploying its payload. 01618_ B-36 Bruiser unfolds itself. 01618_ G-34 Mercenary unfolds itself. 01618_ J5-HVA destroyed. 01621_ T-07 Excavator is excavating. 01625_ Critical hit (Smash). 01625_ Lgt. Treads destroyed. 01625_ Lgt. Armor Plating destroyed. 01625_ System corrupted by crushing effect (+5). 01625_ System corrupted by crushing effect (+1). 01625_ T-07 Excavator is excavating. 01627_ Assault Rifle destroyed. 01628_ Lgt. Ion Engine destroyed. 01628_ System corrupted by crushing effect (+1). 01635_ B-36 Bruiser destroyed. 01635_ Switching to secondary target: G-34 Mercenary. 01639_ Lgt. Treads destroyed. 01642_ System corrupted: Matter fused (-7). 01645_ Assault Rifle destroyed. 01650_ G-34 Mercenary destroyed. Map ----- +----------------------------------------------------+ | ?????????????????????????????????????????????????? | | ?????????????????????????????????????????????????? | | ?????????????????????????????????????????????????? | | ?????????????????????????????????????????????????? | | ?????????????????????????????????????????????????? | | ?????????????????????????????????????????????????? | | ?????????????????????????????????????????????????? | | ?????????????????????????????????????????????????? | | ?????????????????????????????????????????????????? | | ?????????????????????????????????????????????????? | | ?????????????????????????????????????????????????? | | ?????????????????????????????????????????????????? | | ?????????????????????????????????????????????????? | | ?????????????????????????????????????????????????? | | ?????????????????????????????????????????????????? | | ?????????????????????????????????????????????????? | | ?????????????????????????????????????????????????? | | ?????????????????????????????????????????????????? | | ????????????????????????####?????????????????????? | | ??????????????????????### ##????????????????????? | | ??????????????????????? #???????## ??????????? | | ??????????????????????? t % ##???# ???????????? | | ???????????????????????# g ## #?????????????? | | ??????????????????????##=%=[ ??????????????? | | ?????????????????????## %=% ??????????????????? | | ?????????????????????# @=#?????????????????????? | | ?????????????????????# ##?????????????????????? | | ?????????????????????## ##??????????????????????? | | ??????????????????????###????????????????????????? | | ?????????????????????????????????????????????????? | | ?????????????????????????????????????????????????? | | | | | | | | | | | | | | | | | | | | | | | | | | | | | | | | | | | | | | | +----------------------------------------------------+ Best States ------------- Heat Dissipation 25 Energy Generation 10 Energy Capacity 250 Matter Stores 300 Matter Capacity 300 Sight Range 16 Terrain Scan Density 10 Armor Coverage 150 Evasion (%) 40 Recoil Reduction 2 Item Schematics ----------------- None Robot Schematics ------------------ None Fabricated ------------ Nothing Alien Tech Used ----------------- None Achievements -------------- None Challenges ------------ None Game ------ Seed RocketMediumAutohacker Manual? 0 Play Time 00:08:19 Cumulative 507.3 hours Start 2022.05.13 @ 18:54:13 End 2022.05.13 @ 19:02:16 Sessions 1 Manual Loads 0 Difficulty Rogue Special Mode None Game No. 500 Rogue 285 Adventurer 112 Explorer 103 Win Type - Total 32 Types 23/0/6/2/0/0/0/1/0 Lore% 87 Gallery% 91 Achievement% 80 Wizard Run 0 Options --------- ASCII 0 Keyboard 1 Movement Vi Keybinds 1 Fullscreen 2 Font 18/SmallcapsGlow Map View 76x50 Tactical HUD 1 Map Filters NONE Filters NONE Steam 1 RUN: b3c86b83-f1f0-4a7b-a0a9-a56d08fc2e7d